{"text_format":"3","workbook":"xlsx","n_sheets":1,"sheets":["Foglio1"],"read":"whole","date_system":"1900"}

{"sheet":"Foglio1","index":0,"n_rows":49,"n_cols":6,"rows_kept":49,"merged":[[0,0,0,7],[1,0,1,3],[1,4,1,7],[2,0,2,3],[2,4,2,7],[4,0,4,7]]}
["Allegato 5"]
["Nominativo soggetto che presenta domanda"]
["Titolo progetto"]
[]
["PREVENTIVO DI SPESA"]
[{"$nulls":3},"COSTO ATTIVITA' INDIVIDUALI","COSTI ACCESSORI","IMPORTI TOTALI PROGETTO"]
[]
["B","COSTI DEL PROGETTO",null,{"$f":"SUM(D9:D17)","v":0},{"$f":"SUM(E9:E17)","v":0},0]
["B1","Preparazione",null,0,0,{"$f":"E9+D9","v":0}]
[null,"Indagine preliminare di mercato",null,"na","na",{"$f":"E10","v":"na"}]
[null,"Ideazione e progettazione ",null,"na",0,{"$f":"E11","v":0}]
[null,"Pubblicizzazione e promozione del progetto",null,"na",0,0]
[null,"Selezione e orientamento partecipanti",null,"na","na","na"]
[null,"Elaborazione materiale didattico",null,"na",0,0]
[null,"Formazione personale docente",null,"na","na","na"]
[null,"Determinazione del prototipo",null,"na","na","na"]
[null,"Altri costi previsti dall’Avviso",null,"na",0,0]
[]
["B2","Realizzazione",null,{"$f":"SUM(D20:D29)","v":0},0,{"$f":"SUM(F20:F29)","v":0}]
[null,"Docenza/Orientamento/Tutoraggio",null,0,"na",{"$f":"D20","v":0}]
[null,"Erogazione del servizio",null,"na","na",0]
[null,"Attività di sostegno all'utenza svantaggiata: docenza di supporto, ecc.",null,"na","na","na"]
[null,"Attività di sostegno all'utenza (indennità partecipanti, trasporto, vitto, alloggio)",null,"na","na","na"]
[null,"Azioni di sostegno agli utenti del servizio",null,"na","na","na"]
[null,"Esami",null,"na","na","na"]
[null,"Altre funzioni tecniche",null,"na",0,{"$f":"E26","v":0}]
[null,"Utilizzo locali e attrezzature per l'attività programmata",null,"na",0,{"$f":"E27","v":0}]
[null,"Utilizzo materiali di consumo per l'attività programmata",null,"na",0,0]
[null,"Altri costi previsti dall’Avviso",null,"na",0,0]
[]
["B3","Diffusione risultati ",null,null,{"$f":"SUM(E32:E41)","v":0},{"$f":"D31+E31","v":0}]
[null,"Incontri e seminari",null,"na",0,{"$f":"E32","v":0}]
[null,"Elaborazione reports e studi",null,"na","na"]
[null,"Pubblicazioni finali",null,"na",0,0]
[null,"Altri costi previsti dall’Avviso",null,"na","na","na"]
[]
["B4 ","Direzione e controllo interno",null,"na",0,{"$f":"E37","v":0}]
[null,"Direzione e valutazione finale dell'operazione o del progetto",null,"na","n. a.","n. a."]
[null,"Coordinamento e segreteria tecnica organizzativa",null,"na","n. a.","n. a."]
[null,"Monitoraggio fisico-finanziario, rendicontazione",null,"na","n. a.","n. a."]
[null,"Altri costi previsti dall’Avviso",null,"na","n. a.","n. a."]
[]
["B","TOTALE DEL PROGETTO",null,{"$f":"D8+D19+D31","v":0},{"$f":"E8+E19+E31","v":0},{"$f":"F8+F19+F31","v":0}]
[]
[]
["C","COSTI INDIRETTI "]
[null,"percentuale costi indiretti calcolati su base forfetaria",{"$nulls":3},{"$f":"F43*0.04","v":0}]
[]
[null,"TOTALE COSTO DELL'OPERAZIONE (B+C)",{"$nulls":3},{"$f":"F43+F47","v":0}]